[Event "32nd NATO Chess Championship"]
[Site "Tartu, Estonia"]
[Date "2022.07.01"]
[Round "7.4"]
[White "Pietruszewski, Marcin"]
[Black "Nikomanis, Andreas"]
[Result "1/2-1/2"]
[TimeControl "90 min + 30 sec increment from move one"]
[WhiteFideId "1170295"]
[BlackFideId "4213831"]
[WhiteElo "2195"]
[BlackElo "2068"]

1. e4 {[%clk 01:30:55]} {[%emt 00:00:04]} c5 {[%clk 01:30:34]} {[%emt
00:00:27]} 2. Nf3 {[%clk 01:31:15]} {[%emt 00:00:10]} d6 {[%clk 01:31:00]}
{[%emt 00:00:04]} 3. d4 {[%clk 01:31:41]} {[%emt 00:00:05]} cxd4 {[%clk
01:31:27]} {[%emt 00:00:03]} 4. Nxd4 {[%clk 01:32:07]} {[%emt 00:00:04]} Nf6
{[%clk 01:31:52]} {[%emt 00:00:05]} 5. Nc3 {[%clk 01:32:32]} {[%emt 00:00:04]}
g6 {[%clk 01:32:19]} {[%emt 00:00:03]} 6. Be3 {[%clk 01:32:43]} {[%emt
00:00:19]} Bg7 {[%clk 01:32:07]} {[%emt 00:00:43]} 7. f3 {[%clk 01:33:02]}
{[%emt 00:00:11]} O-O {[%clk 01:32:33]} {[%emt 00:00:05]} 8. Qd2 {[%clk
01:33:24]} {[%emt 00:00:07]} Nc6 {[%clk 01:32:59]} {[%emt 00:00:04]} 9. O-O-O
{[%clk 01:33:43]} {[%emt 00:00:10]} d5 {[%clk 01:33:26]} {[%emt 00:00:03]} 10.
exd5 {[%clk 01:33:25]} {[%emt 00:00:48]} Nxd5 {[%clk 01:33:45]} {[%emt
00:00:11]} 11. Nxc6 {[%clk 01:33:48]} {[%emt 00:00:07]} bxc6 {[%clk 01:34:12]}
{[%emt 00:00:04]} 12. Bd4 {[%clk 01:34:05]} {[%emt 00:00:12]} Bxd4 {[%clk
01:34:37]} {[%emt 00:00:05]} 13. Qxd4 {[%clk 01:34:29]} {[%emt 00:00:06]} Qb6
{[%clk 01:35:02]} {[%emt 00:00:04]} 14. Na4 {[%clk 01:33:51]} {[%emt 00:01:08]}
Qa5 {[%clk 01:33:02]} {[%emt 00:02:31]} 15. b3 {[%clk 01:33:03]} {[%emt
00:01:17]} Be6 {[%clk 01:33:28]} {[%emt 00:00:05]} 16. Qe5 {[%clk 01:31:14]}
{[%emt 00:02:18]} Qb4 {[%clk 01:33:11]} {[%emt 00:00:48]} 17. c4 {[%clk
01:30:51]} {[%emt 00:00:53]} Nf6 {[%clk 01:33:00]} {[%emt 00:00:42]} 18. Bd3
{[%clk 01:30:44]} {[%emt 00:00:37]} Rfd8 {[%clk 01:31:28]} {[%emt 00:02:02]} 19.
h4 {[%clk 01:30:17]} {[%emt 00:00:56]} Nd7 {[%clk 01:29:25]} {[%emt 00:02:33]}
20. Qc3 {[%clk 00:51:45]} {[%emt 00:39:02]} a5 {[%clk 01:18:53]} {[%emt
00:11:02]} 21. Be4 {[%clk 00:47:40]} {[%emt 00:04:35]} Rdc8 {[%clk 01:17:41]}
{[%emt 00:01:42]} 22. Kb2 {[%clk 00:37:31]} {[%emt 00:10:40]} Rab8 {[%clk
01:16:38]} {[%emt 00:01:33]} 23. Qxb4 {[%clk 00:35:43]} {[%emt 00:02:17]} axb4
{[%clk 01:14:18]} {[%emt 00:02:50]} 24. Rd2 {[%clk 00:30:45]} {[%emt 00:05:29]}
Rc7 {[%clk 01:12:29]} {[%emt 00:02:19]} 25. Rhd1 {[%clk 00:30:56]} {[%emt
00:00:18]} Ra8 {[%clk 01:12:14]} {[%emt 00:00:45]} 26. Rd4 {[%clk 00:28:31]}
{[%emt 00:02:55]} Ra5 {[%clk 01:10:48]} {[%emt 00:01:56]} 27. f4 {[%clk
00:23:35]} {[%emt 00:05:26]} Kg7 {[%clk 01:07:23]} {[%emt 00:03:55]} 28. R1d2
{[%clk 00:23:41]} {[%emt 00:00:24]} Kf6 {[%clk 01:02:15]} {[%emt 00:05:38]} 29.
g3 {[%clk 00:23:41]} {[%emt 00:00:30]} Kg7 {[%clk 01:01:06]} {[%emt 00:01:39]}
30. Rd1 {[%clk 00:20:39]} {[%emt 00:03:32]} Kf6 {[%clk 00:59:02]} {[%emt
00:02:34]} 31. Ra1 {[%clk 00:20:52]} {[%emt 00:00:18]} c5 {[%clk 00:56:40]}
{[%emt 00:02:52]} 1/2-1/2

[Event "32nd NATO Chess Championship"]
[Site "Tartu, Estonia"]
[Date "2022.07.01"]
[Round "7.5"]
[White "Flaata, Alexander R."]
[Black "Cichy, Kamil"]
[Result "1/2-1/2"]
[TimeControl "90 min + 30 sec increment from move one"]
[WhiteFideId "1502026"]
[BlackFideId "1177257"]
[WhiteElo "2048"]
[BlackElo "2179"]

1. d4 {[%emt 00:19:00]} Nf6 {[%emt 00:00:35]} 2. Bg5 {[%emt 00:01:03]} d5
{[%emt 00:00:23]} 3. Bxf6 {[%emt 00:03:00]} exf6 {[%emt 00:00:05]} 4. e3 {[%emt
00:00:55]} Be6 {[%emt 00:00:26]} 5. Nd2 {[%emt 00:01:00]} c6 {[%emt 00:04:54]}
6. g3 {[%emt 00:05:41]} Bd6 {[%emt 00:06:54]} 7. Bg2 {[%emt 00:01:06]} O-O
{[%emt 00:02:02]} 8. Ne2 {[%emt 00:02:03]} Re8 {[%emt 00:04:37]} 9. O-O {[%emt
00:01:02]} Na6 {[%emt 00:02:44]} 10. a3 {[%emt 00:03:45]} Nc7 {[%emt 00:02:13]}
11. c4 {[%emt 00:02:32]} dxc4 {[%emt 00:06:17]} 12. Rc1 {[%emt 00:00:11]} Bf8
{[%emt 00:03:09]} 13. Nf4 {[%emt 00:03:23]} Bd5 {[%emt 00:18:49]} 14. e4 {[%emt
00:06:40]} Be6 {[%emt 00:00:10]} 15. Nxc4 {[%emt 00:00:51]} Qd7 {[%emt
00:08:58]} 16. Nxe6 {[%emt 00:11:09]} Nxe6 {[%emt 00:06:20]} 17. d5 {[%emt
00:01:20]} cxd5 {[%emt 00:00:22]} 18. exd5 {[%emt 00:00:09]} Nc5 {[%emt
00:00:22]} 19. b4 {[%emt 00:15:18]} Ne4 {[%emt 00:01:22]} 20. Qd3 {[%emt
00:00:35]} Nd6 {[%emt 00:05:41]} 21. Rfe1 {[%emt 00:03:09]} Rxe1+ {[%emt
00:07:53]} 22. Rxe1 {[%emt 00:00:08]} Nxc4 {[%emt 00:03:29]} 23. Qxc4 {[%emt
00:00:05]} a5 {[%emt 00:01:31]} 1/2-1/2

[Event "32nd NATO Chess Championship"]
[Site "Tartu, Estonia"]
[Date "2022.07.01"]
[Round "7.6"]
[White "Pavlidou, Ekaterini"]
[Black "Jauk, Wilhelm"]
[Result "1-0"]
[TimeControl "90 min + 30 sec increment from move one"]
[WhiteTitle "WIM"]
[WhiteFideId "4213262"]
[BlackFideId "24681067"]
[WhiteElo "2146"]
[BlackElo "2156"]

1. d4 {[%emt 00:19:17]} Nf6 {[%emt 00:00:09]} 2. c4 {[%emt 00:00:17]} e6 {[%emt
00:00:06]} 3. Nc3 {[%emt 00:01:47]} d5 {[%emt 00:02:51]} 4. cxd5 {[%emt
00:00:09]} exd5 {[%emt 00:00:05]} 5. Bg5 {[%emt 00:00:12]} Be7 {[%emt
00:00:12]} 6. e3 {[%emt 00:00:34]} O-O {[%emt 00:04:35]} 7. Bd3 {[%emt
00:01:21]} c6 {[%emt 00:01:02]} 8. Qc2 {[%emt 00:01:53]} Nbd7 {[%emt 00:00:51]}
9. Nf3 {[%emt 00:01:49]} Re8 {[%emt 00:01:01]} 10. h3 {[%emt 00:09:00]} Nf8
{[%emt 00:13:03]} 11. O-O {[%emt 00:07:01]} Ne4 {[%emt 00:10:33]} 12. Bf4
{[%emt 00:03:39]} Nxc3 {[%emt 00:04:39]} 13. bxc3 {[%emt 00:00:31]} Bd6 {[%emt
00:02:12]} 14. Bxd6 {[%emt 00:01:55]} Qxd6 {[%emt 00:00:07]} 15. a4 {[%emt
00:01:24]} b6 {[%emt 00:04:15]} 16. Rfe1 {[%emt 00:07:02]} Be6 {[%emt
00:03:39]} 17. Ng5 {[%emt 00:04:09]} h6 {[%emt 00:05:52]} 18. Nf3 {[%emt
00:01:03]} Nd7 {[%emt 00:03:02]} 19. c4 {[%emt 00:06:11]} Rac8 {[%emt
00:07:13]} 20. Rac1 {[%emt 00:01:52]} c5 {[%emt 00:06:26]} 21. cxd5 {[%emt
00:07:52]} Bxd5 {[%emt 00:01:07]} 22. e4 {[%emt 00:03:16]} Bb7 {[%emt
00:00:33]} 23. d5 {[%emt 00:13:04]} Re7 {[%emt 00:02:00]} 24. Bc4 {[%emt
00:01:53]} Ne5 {[%emt 00:02:23]} 25. Nh4 {[%emt 00:06:41]} Nxc4 {[%emt
00:04:18]} 26. Nf5 {[%emt 00:00:45]} Qd7 {[%emt 00:01:14]} 27. Nxe7+ {[%emt
00:00:06]} Qxe7 {[%emt 00:00:02]} 28. Qxc4 {[%emt 00:00:08]} Rd8 {[%emt
00:00:49]} 29. a5 {[%emt 00:00:17]} Rd6 {[%emt 00:00:18]} 30. axb6 {[%emt
00:00:32]} axb6 {[%emt 00:00:02]} 31. Ra1 {[%emt 00:02:27]} Qe5 {[%emt
00:00:45]} 32. Qc1 {[%emt 00:03:02]} g5 {[%emt 00:00:25]} 33. Ra7 {[%emt
00:00:27]} Rd7 {[%emt 00:04:42]} 34. Qa1 {[%emt 00:00:10]} Qb8 {[%emt
00:01:17]} 35. Rb1 {[%emt 00:00:54]} Rd6 {[%emt 00:00:46]} 36. Qe5 {[%emt
00:02:03]} Qxa7 {[%emt 00:02:42]} 37. Qxd6 {[%emt 00:00:11]} 1-0

[Event "32nd NATO Chess Championship"]
[Site "Tartu, Estonia"]
[Date "2022.07.01"]
[Round "7.7"]
[White "Sycz, Dariusz"]
[Black "Duren, Andrew"]
[Result "1/2-1/2"]
[TimeControl "90 min + 30 sec increment from move one"]
[WhiteFideId "1138650"]
[BlackFideId "2019663"]
[WhiteElo "2189"]
[BlackElo "1997"]

1. e4 {[%clk 01:30:56]} {[%emt 00:00:03]} c5 {[%clk 01:30:51]} {[%emt
00:00:10]} 2. Nc3 {[%clk 01:31:20]} {[%emt 00:00:05]} g6 {[%clk 01:31:07]}
{[%emt 00:00:15]} 3. h4 {[%clk 01:31:44]} {[%emt 00:00:05]} h5 {[%clk
01:27:28]} {[%emt 00:04:10]} 4. d4 {[%clk 01:31:11]} {[%emt 00:01:02]} cxd4
{[%clk 01:26:22]} {[%emt 00:01:37]} 5. Qxd4 {[%clk 01:31:38]} {[%emt 00:00:03]}
Nf6 {[%clk 01:26:47]} {[%emt 00:00:06]} 6. Bg5 {[%clk 01:31:53]} {[%emt
00:00:14]} Nc6 {[%clk 01:26:42]} {[%emt 00:00:36]} 7. Qd2 {[%clk 01:32:16]}
{[%emt 00:00:06]} Bg7 {[%clk 01:26:32]} {[%emt 00:00:40]} 8. f3 {[%clk
01:31:20]} {[%emt 00:01:25]} d6 {[%clk 01:25:26]} {[%emt 00:01:37]} 9. Bc4
{[%clk 01:31:28]} {[%emt 00:00:21]} Be6 {[%clk 01:12:11]} {[%emt 00:13:46]} 10.
Bxe6 {[%clk 01:31:47]} {[%emt 00:00:10]} fxe6 {[%clk 01:12:37]} {[%emt
00:00:05]} 11. Nge2 {[%clk 01:28:36]} {[%emt 00:03:41]} Qa5 {[%clk 01:11:14]}
{[%emt 00:01:53]} 12. Nf4 {[%clk 01:26:09]} {[%emt 00:02:56]} Kf7 {[%clk
01:11:39]} {[%emt 00:00:07]} 13. O-O {[%clk 01:24:44]} {[%emt 00:01:53]} Rac8
{[%clk 00:56:56]} {[%emt 00:15:14]} 14. Nh3 {[%clk 01:20:57]} {[%emt 00:04:16]}
Ke8 {[%clk 00:52:33]} {[%emt 00:04:55]} 15. Qf2 {[%clk 01:15:15]} {[%emt
00:06:10]} Qb6 {[%clk 00:48:05]} {[%emt 00:05:00]} 16. Qxb6 {[%clk 01:15:12]}
{[%emt 00:00:32]} axb6 {[%clk 00:48:29]} {[%emt 00:00:06]} 17. Be3 {[%clk
01:13:52]} {[%emt 00:01:49]} Nd7 {[%clk 00:47:50]} {[%emt 00:01:11]} 18. Ng5
{[%clk 01:11:44]} {[%emt 00:02:36]} Bd4 {[%clk 00:47:55]} {[%emt 00:00:26]} 19.
Bf2 {[%clk 01:10:01]} {[%emt 00:02:13]} Nc5 {[%clk 00:42:48]} {[%emt 00:05:36]}
20. Nd1 {[%clk 01:07:34]} {[%emt 00:02:57]} Bxf2+ {[%clk 00:42:55]} {[%emt
00:00:24]} 21. Rxf2 {[%clk 01:07:27]} {[%emt 00:00:37]} Kd7 {[%clk 00:42:52]}
{[%emt 00:00:34]} 22. Ne3 {[%clk 01:06:23]} {[%emt 00:01:33]} b5 {[%clk
00:41:21]} {[%emt 00:02:02]} 23. Rd1 {[%clk 01:02:54]} {[%emt 00:03:57]} Ne5
{[%clk 00:37:26]} {[%emt 00:04:25]} 24. b3 {[%clk 00:54:44]} {[%emt 00:08:40]}
Ra8 {[%clk 00:34:59]} {[%emt 00:02:57]} 25. c3 {[%clk 00:51:52]} {[%emt
00:03:22]} Ra6 {[%clk 00:28:01]} {[%emt 00:07:29]} 26. Rc2 {[%clk 00:45:22]}
{[%emt 00:06:59]} Rf8 {[%clk 00:25:03]} {[%emt 00:03:29]} 27. Kf1 {[%clk
00:36:35]} {[%emt 00:09:16]} Rf4 {[%clk 00:22:12]} {[%emt 00:03:21]} 28. g3
{[%clk 00:36:32]} {[%emt 00:00:34]} Rxf3+ {[%clk 00:21:59]} {[%emt 00:00:43]}
29. Nxf3 {[%clk 00:36:31]} {[%emt 00:00:30]} Nxf3 {[%clk 00:22:26]} {[%emt
00:00:03]} 30. Ke2 {[%clk 00:35:23]} {[%emt 00:01:37]} Ne5 {[%clk 00:22:46]}
{[%emt 00:00:12]} 31. Rg1 {[%clk 00:31:19]} {[%emt 00:04:32]} Nxe4 {[%clk
00:21:42]} {[%emt 00:01:36]} 32. g4 {[%clk 00:31:31]} {[%emt 00:00:17]} Rc6
{[%clk 00:17:55]} {[%emt 00:04:18]} 33. c4 {[%clk 00:30:15]} {[%emt 00:01:46]}
bxc4 {[%clk 00:17:52]} {[%emt 00:00:33]} 34. gxh5 {[%clk 00:30:16]} {[%emt
00:00:29]} gxh5 {[%clk 00:18:03]} {[%emt 00:00:18]} 35. bxc4 {[%clk 00:27:21]}
{[%emt 00:03:25]} Rc8 {[%clk 00:15:50]} {[%emt 00:02:44]} 36. Rb2 {[%clk
00:23:01]} {[%emt 00:04:49]} Rf8 {[%clk 00:13:16]} {[%emt 00:03:04]} 37. Rg2
{[%clk 00:15:49]} {[%emt 00:07:41]} Kc6 {[%clk 00:12:32]} {[%emt 00:01:16]} 38.
Rb3 {[%clk 00:13:16]} {[%emt 00:03:02]} Rf4 {[%clk 00:08:10]} {[%emt 00:04:52]}
1/2-1/2

[Event "32nd NATO Chess Championship"]
[Site "Tartu, Estonia"]
[Date "2022.07.01"]
[Round "7.8"]
[White "Graczyk, Damian"]
[Black "Nilsson, Erik"]
[Result "1-0"]
[TimeControl "90 min + 30 sec increment from move one"]
[WhiteFideId "1170716"]
[BlackFideId "1409000"]
[WhiteElo "2151"]
[BlackElo "2002"]

1. d4 {[%clk 01:30:50]} {[%emt 00:00:10]} d5 {[%clk 01:30:53]} {[%emt
00:00:08]} 2. Nf3 {[%clk 01:30:57]} {[%emt 00:00:23]} Nf6 {[%clk 01:30:33]}
{[%emt 00:00:50]} 3. c4 {[%clk 01:31:11]} {[%emt 00:00:15]} e6 {[%clk
01:30:48]} {[%emt 00:00:15]} 4. Nc3 {[%clk 01:31:08]} {[%emt 00:00:34]} c6
{[%clk 01:31:11]} {[%emt 00:00:07]} 5. cxd5 {[%clk 01:31:31]} {[%emt 00:00:06]}
exd5 {[%clk 01:31:33]} {[%emt 00:00:08]} 6. Bg5 {[%clk 01:31:59]} {[%emt
00:00:02]} Be7 {[%clk 01:31:21]} {[%emt 00:00:42]} 7. e3 {[%clk 01:32:21]}
{[%emt 00:00:08]} Nbd7 {[%clk 01:31:20]} {[%emt 00:00:31]} 8. Bd3 {[%clk
01:31:34]} {[%emt 00:01:18]} O-O {[%clk 01:31:21]} {[%emt 00:00:29]} 9. O-O
{[%clk 01:32:00]} {[%emt 00:00:03]} h6 {[%clk 01:28:48]} {[%emt 00:03:03]} 10.
Bh4 {[%clk 01:32:04]} {[%emt 00:00:27]} Ne4 {[%clk 01:28:57]} {[%emt 00:00:21]}
11. Bxe7 {[%clk 01:26:25]} {[%emt 00:06:08]} Qxe7 {[%clk 01:29:21]} {[%emt
00:00:07]} 12. Qc2 {[%clk 01:26:43]} {[%emt 00:00:12]} f5 {[%clk 01:26:48]}
{[%emt 00:03:03]} 13. Rae1 {[%clk 01:25:01]} {[%emt 00:02:11]} Nd6 {[%clk
01:18:16]} {[%emt 00:09:02]} 14. a4 {[%clk 01:21:45]} {[%emt 00:03:46]} a5
{[%clk 01:17:40]} {[%emt 00:01:06]} 15. Ne2 {[%clk 01:14:47]} {[%emt 00:07:28]}
Rf6 {[%clk 01:13:48]} {[%emt 00:04:22]} 16. Ng3 {[%clk 01:09:53]} {[%emt
00:05:24]} Ne4 {[%clk 01:09:19]} {[%emt 00:04:59]} 17. Nh4 {[%clk 00:56:47]}
{[%emt 00:13:35]} Nf8 {[%clk 01:07:01]} {[%emt 00:02:49]} 18. Nhxf5 {[%clk
00:51:19]} {[%emt 00:05:59]} Bxf5 {[%clk 01:04:56]} {[%emt 00:02:34]} 19. Nxf5
{[%clk 00:51:46]} {[%emt 00:00:03]} Rxf5 {[%clk 01:05:12]} {[%emt 00:00:14]} 20.
f3 {[%clk 00:52:15]} {[%emt 00:00:02]} Re8 {[%clk 01:05:10]} {[%emt 00:00:32]}
21. fxe4 {[%clk 00:52:07]} {[%emt 00:00:38]} Rxf1+ {[%clk 01:05:24]} {[%emt
00:00:16]} 22. Rxf1 {[%clk 00:51:59]} {[%emt 00:00:38]} dxe4 {[%clk 01:05:40]}
{[%emt 00:00:13]} 23. Bc4+ {[%clk 00:51:41]} {[%emt 00:00:48]} Kh7 {[%clk
01:04:11]} {[%emt 00:01:58]} 24. Qf2 {[%clk 00:49:59]} {[%emt 00:02:12]} Nd7
{[%clk 00:58:01]} {[%emt 00:06:41]} 25. Qf5+ {[%clk 00:46:21]} {[%emt
00:04:07]} Kh8 {[%clk 00:58:22]} {[%emt 00:00:10]} 26. Qxa5 {[%clk 00:46:42]}
{[%emt 00:00:09]} Rf8 {[%clk 00:58:26]} {[%emt 00:00:26]} 27. Qc7 {[%clk
00:43:27]} {[%emt 00:03:45]} Rxf1+ {[%clk 00:58:23]} {[%emt 00:00:34]} 28. Bxf1
{[%clk 00:43:49]} {[%emt 00:00:07]} Qg5 {[%clk 00:56:46]} {[%emt 00:02:07]} 29.
Qxd7 {[%clk 00:42:37]} {[%emt 00:01:42]} Qxe3+ {[%clk 00:56:58]} {[%emt
00:00:18]} 30. Kh1 {[%clk 00:43:06]} {[%emt 00:00:01]} Qf2 {[%clk 00:57:12]}
{[%emt 00:00:16]} 31. Qe8+ {[%clk 00:43:28]} {[%emt 00:00:09]} 1-0

[Event "32nd NATO Chess Championship"]
[Site "Tartu, Estonia"]
[Date "2022.07.01"]
[Round "7.9"]
[White "Kedzierski, Slawomir"]
[Black "Balmaceda, Enrico"]
[Result "1/2-1/2"]
[TimeControl "90 min + 30 sec increment from move one"]
[WhiteFideId "1134949"]
[BlackFideId "2089785"]
[WhiteElo "2133"]
[BlackElo "1958"]

1. d4 {[%clk 01:30:58]} Nf6 {[%clk 01:30:22]} {[%emt 00:00:39]} 2. Nf3 {[%clk
01:31:21]} {[%emt 00:00:06]} d5 {[%clk 01:30:34]} {[%emt 00:00:19]} 3. c4
{[%clk 01:31:45]} {[%emt 00:00:06]} e6 {[%clk 01:30:37]} {[%emt 00:00:27]} 4.
Nc3 {[%clk 01:32:09]} {[%emt 00:00:05]} c6 {[%clk 01:30:46]} {[%emt 00:00:22]}
5. e3 {[%clk 01:31:55]} {[%emt 00:00:43]} Nbd7 {[%clk 01:29:32]} {[%emt
00:01:45]} 6. Be2 {[%clk 01:32:01]} {[%emt 00:00:23]} Bd6 {[%clk 01:28:43]}
{[%emt 00:01:20]} 7. O-O {[%clk 01:31:58]} {[%emt 00:00:32]} O-O {[%clk
01:28:26]} {[%emt 00:00:48]} 8. b3 {[%clk 01:32:06]} {[%emt 00:00:22]} a6
{[%clk 01:22:22]} {[%emt 00:06:35]} 9. a4 {[%clk 01:31:32]} {[%emt 00:01:03]}
Re8 {[%clk 01:15:07]} {[%emt 00:07:46]} 10. Bb2 {[%clk 01:31:48]} {[%emt
00:00:12]} b6 {[%clk 01:01:38]} {[%emt 00:14:00]} 11. Qc2 {[%clk 01:27:30]}
{[%emt 00:04:47]} Bb7 {[%clk 00:50:06]} {[%emt 00:12:04]} 12. cxd5 {[%clk
01:20:45]} {[%emt 00:07:14]} exd5 {[%clk 00:46:31]} {[%emt 00:04:04]} 13. Bd3
{[%clk 01:18:09]} {[%emt 00:03:05]} c5 {[%clk 00:43:46]} {[%emt 00:03:17]} 14.
Rfd1 {[%clk 01:09:07]} {[%emt 00:09:31]} Qe7 {[%clk 00:40:14]} {[%emt
00:04:03]} 15. Rac1 {[%clk 01:08:42]} {[%emt 00:00:54]} Ne4 {[%clk 00:32:03]}
{[%emt 00:08:43]} 16. dxc5 {[%clk 01:08:12]} {[%emt 00:00:59]} Ndxc5 {[%clk
00:25:51]} {[%emt 00:06:42]} 17. Nd4 {[%clk 01:01:51]} {[%emt 00:06:50]} Nxd3
{[%clk 00:20:35]} {[%emt 00:05:46]} 18. Rxd3 {[%clk 01:01:22]} {[%emt
00:00:58]} Nxc3 {[%clk 00:13:10]} {[%emt 00:07:57]} 19. Bxc3 {[%clk 00:50:29]}
{[%emt 00:11:21]} Qh4 {[%clk 00:11:57]} {[%emt 00:01:42]} 20. h3 {[%clk
00:49:36]} {[%emt 00:01:24]} Qh5 {[%clk 00:11:55]} {[%emt 00:00:33]} 21. Bb2
{[%clk 00:43:14]} {[%emt 00:06:53]} Qg6 {[%clk 00:10:55]} {[%emt 00:01:30]} 22.
Rdd1 {[%clk 00:43:28]} {[%emt 00:00:15]} Rac8 {[%clk 00:09:49]} {[%emt
00:01:36]} 23. Qf5 {[%clk 00:41:10]} {[%emt 00:02:46]} Qxf5 {[%clk 00:07:43]}
{[%emt 00:02:40]} 24. Nxf5 {[%clk 00:41:30]} {[%emt 00:00:09]} Bf8 {[%clk
00:08:07]} {[%emt 00:00:05]} 25. Bd4 {[%clk 00:38:51]} {[%emt 00:03:09]} g6
{[%clk 00:07:55]} {[%emt 00:00:43]} 26. Ng3 {[%clk 00:39:01]} {[%emt 00:00:18]}
Bc5 {[%clk 00:07:59]} {[%emt 00:00:27]} 27. Ne2 {[%clk 00:38:39]} {[%emt
00:00:51]} Kf8 {[%clk 00:06:49]} {[%emt 00:01:41]} 28. Rc3 {[%clk 00:38:04]}
{[%emt 00:01:04]} Ke7 {[%clk 00:06:53]} {[%emt 00:00:28]} 29. Rdc1 {[%clk
00:38:12]} {[%emt 00:00:21]} Bxd4 {[%clk 00:06:58]} {[%emt 00:00:26]} 30. Nxd4
{[%clk 00:38:25]} {[%emt 00:00:16]} Kd6 {[%clk 00:07:04]} {[%emt 00:00:25]} 31.
Kf1 {[%clk 00:36:43]} {[%emt 00:02:11]} Rxc3 {[%clk 00:07:26]} {[%emt
00:00:09]} 32. Rxc3 {[%clk 00:37:03]} {[%emt 00:00:09]} Rc8 {[%clk 00:07:50]}
{[%emt 00:00:06]} 33. Rxc8 {[%clk 00:35:20]} {[%emt 00:02:13]} Bxc8 {[%clk
00:08:19]} {[%emt 00:00:02]} 34. Ke2 {[%clk 00:35:43]} {[%emt 00:00:07]} Bd7
{[%clk 00:08:10]} {[%emt 00:00:40]} 35. Kd3 {[%clk 00:34:23]} {[%emt 00:01:49]}
f6 {[%clk 00:07:36]} {[%emt 00:01:05]} 36. Kc3 {[%clk 00:34:25]} {[%emt
00:00:28]} a5 {[%clk 00:07:39]} {[%emt 00:00:27]} 37. h4 {[%clk 00:33:57]}
{[%emt 00:00:57]} h6 {[%clk 00:07:16]} {[%emt 00:00:54]} 38. Ne2 {[%clk
00:33:37]} {[%emt 00:00:50]} Ke5 {[%clk 00:07:05]} {[%emt 00:00:41]} 39. Nd4
{[%clk 00:33:15]} {[%emt 00:00:51]} g5 {[%clk 00:07:14]} {[%emt 00:00:22]} 40.
Kd3 {[%clk 00:32:32]} {[%emt 00:01:12]} Be8 {[%clk 00:05:53]} {[%emt 00:01:51]}
41. Nf3+ {[%clk 00:29:25]} {[%emt 00:03:37]} Kd6 {[%clk 00:06:06]} {[%emt
00:00:18]} 42. Kd4 {[%clk 00:28:25]} {[%emt 00:01:29]} b5 {[%clk 00:06:01]}
{[%emt 00:00:36]} 43. axb5 {[%clk 00:28:46]} {[%emt 00:00:09]} Bxb5 {[%clk
00:06:29]} {[%emt 00:00:02]} 44. g3 {[%clk 00:23:19]} {[%emt 00:05:54]} 1/2-1/2